[Event "Early Titled Tuesday Blitz | February 8 2022"]
[White "Manukian, Artak"]
[Black "Goldin, Roman"]
[WhiteFideId "13301373"]
[BlackFideId "2803860"]
[WhiteElo "2405"]
[BlackElo "2312"]
[Result "0-1"]
[Round "08"]
[TimeControl "180+1"]
[Date "2022.02.08"]
[WhiteClock "0:00:09"]
[BlackClock "0:00:45"]

1. e4 {[%clk 0:02:49]}  Nc6 {[%clk 0:02:58]} 2. Nf3 {[%clk 0:02:48]}  e5 {[%clk 0:02:58]} 3. d4 {[%clk 0:02:48]}  exd4 {[%clk 0:02:58]} 4. Nxd4 {[%clk 0:02:49]}  g6 {[%clk 0:02:57]} 5. Nxc6 {[%clk 0:02:49]}  bxc6 {[%clk 0:02:57]} 6. Qd4 {[%clk 0:02:49]}  Qf6 {[%clk 0:02:57]} 7. e5 {[%clk 0:02:49]}  Qe6 {[%clk 0:02:58]} 8. Bc4 {[%clk 0:02:48]}  d5 {[%clk 0:02:58]} 9. Bb3 {[%clk 0:02:40]}  Bb7 {[%clk 0:02:58]} 10. O-O {[%clk 0:02:39]}  c5 {[%clk 0:02:58]} 11. Qa4+ {[%clk 0:02:38]}  Bc6 {[%clk 0:02:58]} 12. Qa5 {[%clk 0:02:31]}  c4 {[%clk 0:02:36]} 13. Ba4 {[%clk 0:02:31]}  Ne7 {[%clk 0:02:36]} 14. Bg5 {[%clk 0:02:26]}  Nc8 {[%clk 0:02:28]} 15. Bf6 {[%clk 0:02:24]}  Rg8 {[%clk 0:02:27]} 16. Nc3 {[%clk 0:02:21]}  Nb6 {[%clk 0:02:26]} 17. Bxc6+ {[%clk 0:02:21]}  Qxc6 {[%clk 0:02:26]} 18. Qb5 {[%clk 0:02:20]}  Qxb5 {[%clk 0:02:21]} 19. Nxb5 {[%clk 0:02:21]}  Kd7 {[%clk 0:02:08]} 20. Rfd1 {[%clk 0:02:20]}  c6 {[%clk 0:02:04]} 21. Nd4 {[%clk 0:02:20]}  Bc5 {[%clk 0:01:56]} 22. Nf3 {[%clk 0:02:17]}  h6 {[%clk 0:01:51]} 23. b3 {[%clk 0:02:12]}  Ke6 {[%clk 0:01:51]} 24. h4 {[%clk 0:02:11]}  a5 {[%clk 0:01:48]} 25. a4 {[%clk 0:02:10]}  Rab8 {[%clk 0:01:46]} 26. Nd2 {[%clk 0:01:48]}  Bd4 {[%clk 0:01:41]} 27. Rab1 {[%clk 0:01:47]}  Bxe5 {[%clk 0:01:39]} 28. Bxe5 {[%clk 0:01:48]}  Kxe5 {[%clk 0:01:39]} 29. Re1+ {[%clk 0:01:47]}  Kd6 {[%clk 0:01:38]} 30. bxc4 {[%clk 0:01:47]}  Nxc4 {[%clk 0:01:37]} 31. Nxc4+ {[%clk 0:01:46]}  dxc4 {[%clk 0:01:36]} 32. Rbd1+ {[%clk 0:01:44]}  Kc5 {[%clk 0:01:36]} 33. Re7 {[%clk 0:01:39]}  Rb2 {[%clk 0:01:31]} 34. c3 {[%clk 0:01:35]}  Rc2 {[%clk 0:01:26]} 35. Re5+ {[%clk 0:01:28]}  Kb6 {[%clk 0:01:25]} 36. Rb1+ {[%clk 0:01:28]}  Kc7 {[%clk 0:01:24]} 37. Re7+ {[%clk 0:01:13]}  Kd6 {[%clk 0:01:23]} 38. Re3 {[%clk 0:01:13]}  Kc5 {[%clk 0:01:17]} 39. Rb7 {[%clk 0:01:06]}  f6 {[%clk 0:01:17]} 40. Rf7 {[%clk 0:01:00]}  Rd8 {[%clk 0:01:16]} 41. Rxf6 {[%clk 0:01:00]}  Rd3 {[%clk 0:01:15]} 42. Ree6 {[%clk 0:00:58]}  Rcxc3 {[%clk 0:01:14]} 43. Rxc6+ {[%clk 0:00:58]}  Kb4 {[%clk 0:01:14]} 44. Rxg6 {[%clk 0:00:58]}  Kxa4 {[%clk 0:01:13]} 45. Rxh6 {[%clk 0:00:58]}  Rc1+ {[%clk 0:01:12]} 46. Kh2 {[%clk 0:00:58]}  Rd2 {[%clk 0:01:12]} 47. Kg3 {[%clk 0:00:43]}  Rcc2 {[%clk 0:01:12]} 48. Rhf6 {[%clk 0:00:42]}  c3 {[%clk 0:01:11]} 49. Rf3 {[%clk 0:00:40]}  Kb4 {[%clk 0:01:10]} 50. h5 {[%clk 0:00:41]}  a4 {[%clk 0:01:10]} 51. h6 {[%clk 0:00:41]}  Rd7 {[%clk 0:01:09]} 52. Rf4+ {[%clk 0:00:36]}  Kb3 {[%clk 0:01:09]} 53. Rb6+ {[%clk 0:00:35]}  Ka3 {[%clk 0:01:09]} 54. Ra6 {[%clk 0:00:34]}  Rcd2 {[%clk 0:01:09]} 55. Raxa4+ {[%clk 0:00:32]}  Kb3 {[%clk 0:01:08]} 56. Rab4+ {[%clk 0:00:32]}  Kc2 {[%clk 0:01:08]} 57. Rh4 {[%clk 0:00:28]}  R2d3+ {[%clk 0:01:02]} 58. f3 {[%clk 0:00:26]}  Rh7 {[%clk 0:00:58]} 59. Rbg4 {[%clk 0:00:25]}  Rd6 {[%clk 0:00:58]} 60. Rc4 {[%clk 0:00:21]}  Rhxh6 {[%clk 0:00:57]} 61. Rxh6 {[%clk 0:00:21]}  Rxh6 {[%clk 0:00:56]} 62. Kf4 {[%clk 0:00:22]}  Rf6+ {[%clk 0:00:54]} 63. Ke5 {[%clk 0:00:19]}  Rf8 {[%clk 0:00:51]} 64. f4 {[%clk 0:00:14]}  Kd3 {[%clk 0:00:48]} 65. Rc7 {[%clk 0:00:13]}  c2 {[%clk 0:00:47]} 66. f5 {[%clk 0:00:12]}  Re8+ {[%clk 0:00:47]} 67. Kf4 {[%clk 0:00:12]}  Re4+ {[%clk 0:00:46]} 68. Kf3 {[%clk 0:00:12]}  Rc4 {[%clk 0:00:47]} 69. Rd7+ {[%clk 0:00:09]}  Kc3 {[%clk 0:00:46]} 70. f6 {[%clk 0:00:08]}  c1=Q {[%clk 0:00:45]} 71. f7 {[%clk 0:00:09]}  Qf4+ {[%clk 0:00:44]} 72. Ke2 {[%clk 0:00:09]}  Re4+ {[%clk 0:00:45]} 0-1


[Site "https://www.chess.com"]

[Event "Early Titled Tuesday Blitz | February 8 2022"]
[White "Manukyan, Artyom"]
[Black "Shyaamnikhil P"]
[WhiteFideId "13305786"]
[BlackFideId "5024218"]
[WhiteElo "2034"]
[BlackElo "2292"]
[Result "0-1"]
[Round "08"]
[TimeControl "180+1"]
[Date "2022.02.08"]
[WhiteClock "0:00:08"]
[BlackClock "0:00:12"]

1. e4 {[%clk 0:03:00]}  e5 {[%clk 0:02:59]} 2. Nf3 {[%clk 0:02:57]}  Nc6 {[%clk 0:02:58]} 3. Bb5 {[%clk 0:02:58]}  a6 {[%clk 0:02:58]} 4. Bxc6 {[%clk 0:02:57]}  dxc6 {[%clk 0:02:57]} 5. O-O {[%clk 0:02:58]}  Ne7 {[%clk 0:02:57]} 6. Nxe5 {[%clk 0:02:58]}  Qd4 {[%clk 0:02:57]} 7. Qh5 {[%clk 0:02:58]}  g6 {[%clk 0:02:50]} 8. Qg5 {[%clk 0:02:58]}  Bg7 {[%clk 0:02:36]} 9. Nd3 {[%clk 0:02:51]}  h6 {[%clk 0:01:05]} 10. Qf4 {[%clk 0:02:40]}  Qd6 {[%clk 0:00:54]} 11. Qxd6 {[%clk 0:02:35]}  cxd6 {[%clk 0:00:54]} 12. Nc3 {[%clk 0:02:36]}  g5 {[%clk 0:00:51]} 13. Re1 {[%clk 0:02:32]}  O-O {[%clk 0:00:44]} 14. b3 {[%clk 0:02:32]}  Ng6 {[%clk 0:00:42]} 15. Ba3 {[%clk 0:02:32]}  Rd8 {[%clk 0:00:41]} 16. f3 {[%clk 0:02:28]}  f5 {[%clk 0:00:41]} 17. Rad1 {[%clk 0:02:28]}  a5 {[%clk 0:00:39]} 18. Nf2 {[%clk 0:02:19]}  b5 {[%clk 0:00:35]} 19. exf5 {[%clk 0:02:20]}  Bxf5 {[%clk 0:00:33]} 20. Nce4 {[%clk 0:02:13]}  b4 {[%clk 0:00:31]} 21. Bc1 {[%clk 0:02:13]}  d5 {[%clk 0:00:29]} 22. g4 {[%clk 0:02:13]}  Bc8 {[%clk 0:00:20]} 23. Ng3 {[%clk 0:01:50]}  Nh4 {[%clk 0:00:20]} 24. Re3 {[%clk 0:01:50]}  Rf8 {[%clk 0:00:19]} 25. Re7 {[%clk 0:01:08]}  Nxf3+ {[%clk 0:00:19]} 26. Kg2 {[%clk 0:01:09]}  Nh4+ {[%clk 0:00:19]} 27. Kg1 {[%clk 0:01:07]}  Bd4 {[%clk 0:00:19]} 28. Nh1 {[%clk 0:01:03]}  Bxg4 {[%clk 0:00:18]} 29. Rf1 {[%clk 0:00:56]}  Bf3 {[%clk 0:00:17]} 30. Ng3 {[%clk 0:00:43]}  Bg2 {[%clk 0:00:16]} 31. c3 {[%clk 0:00:35]}  Bc5 {[%clk 0:00:16]} 32. Re6 {[%clk 0:00:30]}  Bxf1 {[%clk 0:00:15]} 33. d4 {[%clk 0:00:30]}  Ba7 {[%clk 0:00:12]} 34. Rxh6 {[%clk 0:00:15]}  bxc3 {[%clk 0:00:12]} 35. Nxf1 {[%clk 0:00:13]}  Bxd4 {[%clk 0:00:12]} 36. Be3 {[%clk 0:00:14]}  Bxe3 {[%clk 0:00:12]} 37. Nxe3 {[%clk 0:00:15]}  Rae8 {[%clk 0:00:12]} 38. Neg4 {[%clk 0:00:08]}  Re1# {[%clk 0:00:12]} 0-1


[Site "https://www.chess.com"]

[Event "Early Titled Tuesday Blitz | February 8 2022"]
[White "Marcziter, Dmitrii"]
[Black "Roman, Rodrigo"]
[WhiteFideId "13900765"]
[BlackFideId "3701220"]
[WhiteElo "2155"]
[BlackElo "2001"]
[Result "0-1"]
[Round "08"]
[TimeControl "180+1"]
[Date "2022.02.08"]
[WhiteClock "0:00:11"]
[BlackClock "0:00:21"]

1. e4 {[%clk 0:03:00]}  c5 {[%clk 0:03:00]} 2. Nc3 {[%clk 0:03:00]}  g6 {[%clk 0:02:59]} 3. g3 {[%clk 0:02:59]}  Nc6 {[%clk 0:02:59]} 4. Bg2 {[%clk 0:03:00]}  Bg7 {[%clk 0:03:00]} 5. d3 {[%clk 0:03:00]}  e6 {[%clk 0:03:01]} 6. Be3 {[%clk 0:02:56]}  d6 {[%clk 0:03:00]} 7. Qd2 {[%clk 0:02:54]}  h5 {[%clk 0:03:00]} 8. h4 {[%clk 0:02:53]}  Nge7 {[%clk 0:02:59]} 9. Nge2 {[%clk 0:02:51]}  Nd4 {[%clk 0:02:58]} 10. Nf4 {[%clk 0:02:48]}  Nec6 {[%clk 0:02:57]} 11. Nd1 {[%clk 0:02:46]}  Ne5 {[%clk 0:02:51]} 12. Bxd4 {[%clk 0:02:39]}  cxd4 {[%clk 0:02:52]} 13. O-O {[%clk 0:02:39]}  g5 {[%clk 0:02:44]} 14. hxg5 {[%clk 0:02:38]}  h4 {[%clk 0:02:45]} 15. g6 {[%clk 0:02:31]}  fxg6 {[%clk 0:02:23]} 16. c3 {[%clk 0:02:17]}  g5 {[%clk 0:02:20]} 17. cxd4 {[%clk 0:02:14]}  gxf4 {[%clk 0:02:19]} 18. dxe5 {[%clk 0:02:14]}  dxe5 {[%clk 0:02:09]} 19. gxf4 {[%clk 0:02:13]}  Bh6 {[%clk 0:02:08]} 20. Ne3 {[%clk 0:02:07]}  h3 {[%clk 0:02:04]} 21. Bf3 {[%clk 0:02:06]}  Bxf4 {[%clk 0:02:04]} 22. Kh1 {[%clk 0:02:05]}  Qf6 {[%clk 0:02:00]} 23. Ng4 {[%clk 0:02:00]}  Qe7 {[%clk 0:01:56]} 24. Qa5 {[%clk 0:01:57]}  b6 {[%clk 0:01:55]} 25. Qb5+ {[%clk 0:01:52]}  Bd7 {[%clk 0:01:54]} 26. Qa6 {[%clk 0:01:50]}  Bc8 {[%clk 0:01:31]} 27. Qb5+ {[%clk 0:01:46]}  Bd7 {[%clk 0:01:31]} 28. Qb3 {[%clk 0:01:42]}  Qd6 {[%clk 0:01:25]} 29. d4 {[%clk 0:01:38]}  Ke7 {[%clk 0:01:18]} 30. dxe5 {[%clk 0:01:36]}  Bxe5 {[%clk 0:01:19]} 31. Rad1 {[%clk 0:01:35]}  Qc5 {[%clk 0:01:19]} 32. Rc1 {[%clk 0:01:26]}  Qd4 {[%clk 0:01:15]} 33. Rfd1 {[%clk 0:01:25]}  Qxb2 {[%clk 0:01:15]} 34. Qxb2 {[%clk 0:01:09]}  Bxb2 {[%clk 0:01:15]} 35. Rc7 {[%clk 0:01:10]}  Rhd8 {[%clk 0:01:09]} 36. e5 {[%clk 0:01:10]}  Rac8 {[%clk 0:01:07]} 37. Rdxd7+ {[%clk 0:01:08]}  Rxd7 {[%clk 0:01:05]} 38. Rxc8 {[%clk 0:01:08]}  Rd3 {[%clk 0:01:00]} 39. Be4 {[%clk 0:01:06]}  Rd4 {[%clk 0:00:56]} 40. Nf6 {[%clk 0:01:03]}  Rd1+ {[%clk 0:00:51]} 41. Kh2 {[%clk 0:01:02]}  Bxe5+ {[%clk 0:00:51]} 42. Kxh3 {[%clk 0:01:03]}  Kxf6 {[%clk 0:00:49]} 43. Ra8 {[%clk 0:00:56]}  Rd7 {[%clk 0:00:39]} 44. Kg4 {[%clk 0:00:53]}  Rg7+ {[%clk 0:00:38]} 45. Kf3 {[%clk 0:00:53]}  Bd4 {[%clk 0:00:37]} 46. Bd3 {[%clk 0:00:48]}  Ke5 {[%clk 0:00:38]} 47. Ke2 {[%clk 0:00:47]}  Rf7 {[%clk 0:00:38]} 48. f3 {[%clk 0:00:47]}  Bc5 {[%clk 0:00:36]} 49. Bc4 {[%clk 0:00:45]}  Kd4 {[%clk 0:00:35]} 50. Bb3 {[%clk 0:00:44]}  Re7 {[%clk 0:00:33]} 51. Rd8+ {[%clk 0:00:43]}  Kc3 {[%clk 0:00:33]} 52. Rd3+ {[%clk 0:00:42]}  Kb2 {[%clk 0:00:34]} 53. Rd2+ {[%clk 0:00:41]}  Ka3 {[%clk 0:00:34]} 54. Rd3 {[%clk 0:00:39]}  e5 {[%clk 0:00:34]} 55. Bd5+ {[%clk 0:00:35]}  Kb2 {[%clk 0:00:28]} 56. a4 {[%clk 0:00:32]}  Bd4 {[%clk 0:00:26]} 57. Kd2 {[%clk 0:00:30]}  Rc7 {[%clk 0:00:26]} 58. Rb3+ {[%clk 0:00:29]}  Ka1 {[%clk 0:00:25]} 59. Be4 {[%clk 0:00:29]}  Ka2 {[%clk 0:00:20]} 60. Bd5 {[%clk 0:00:28]}  Ka1 {[%clk 0:00:21]} 61. Be4 {[%clk 0:00:26]}  Rg7 {[%clk 0:00:21]} 62. Rb1+ {[%clk 0:00:24]}  Ka2 {[%clk 0:00:21]} 63. Rh1 {[%clk 0:00:21]}  Rg2+ {[%clk 0:00:20]} 64. Kd3 {[%clk 0:00:22]}  Ka3 {[%clk 0:00:20]} 65. Bc6 {[%clk 0:00:21]}  Rb2 {[%clk 0:00:18]} 66. Ke4 {[%clk 0:00:20]}  Re2+ {[%clk 0:00:17]} 67. Kf5 {[%clk 0:00:20]}  Rb2 {[%clk 0:00:17]} 68. Rc1 {[%clk 0:00:18]}  Rb4 {[%clk 0:00:17]} 69. Rc2 {[%clk 0:00:16]}  a5 {[%clk 0:00:15]} 70. Bb5 {[%clk 0:00:16]}  Rxa4 {[%clk 0:00:14]} 71. Bxa4 {[%clk 0:00:16]}  Kxa4 {[%clk 0:00:15]} 72. Rc4+ {[%clk 0:00:14]}  Kb3 {[%clk 0:00:15]} 73. Rc6 {[%clk 0:00:13]}  b5 {[%clk 0:00:16]} 74. Rd6 {[%clk 0:00:13]}  b4 {[%clk 0:00:15]} 75. f4 {[%clk 0:00:13]}  exf4 {[%clk 0:00:13]} 76. Rxd4 {[%clk 0:00:13]}  f3 {[%clk 0:00:13]} 77. Rf4 {[%clk 0:00:12]}  a4 {[%clk 0:00:13]} 78. Rxf3+ {[%clk 0:00:12]}  Ka2 {[%clk 0:00:13]} 79. Ke4 {[%clk 0:00:13]}  b3 {[%clk 0:00:14]} 80. Kd3 {[%clk 0:00:13]}  b2 {[%clk 0:00:14]} 81. Rf2 {[%clk 0:00:13]}  Ka1 {[%clk 0:00:15]} 82. Rf1+ {[%clk 0:00:07]}  b1=Q+ {[%clk 0:00:12]} 83. Rxb1+ {[%clk 0:00:06]}  Kxb1 {[%clk 0:00:13]} 84. Kc3 {[%clk 0:00:06]}  a3 {[%clk 0:00:14]} 85. Kb3 {[%clk 0:00:07]}  a2 {[%clk 0:00:15]} 86. Kc3 {[%clk 0:00:08]}  a1=Q+ {[%clk 0:00:16]} 87. Kc4 {[%clk 0:00:08]}  Qb2 {[%clk 0:00:16]} 88. Kd5 {[%clk 0:00:09]}  Kc2 {[%clk 0:00:17]} 89. Ke6 {[%clk 0:00:09]}  Qc3 {[%clk 0:00:18]} 90. Kd7 {[%clk 0:00:09]}  Kd3 {[%clk 0:00:19]} 91. Ke6 {[%clk 0:00:09]}  Qd4 {[%clk 0:00:19]} 92. Kf5 {[%clk 0:00:10]}  Qe4+ {[%clk 0:00:19]} 93. Kf6 {[%clk 0:00:10]}  Kd4 {[%clk 0:00:20]} 94. Kg5 {[%clk 0:00:11]}  Qe5+ {[%clk 0:00:21]} 95. Kg6 {[%clk 0:00:11]}  Ke4 {[%clk 0:00:21]} 0-1


[Site "https://www.chess.com"]

[Event "Early Titled Tuesday Blitz | February 8 2022"]
[White "Miszler, Levente"]
[Black "Guseva, Marina"]
[WhiteFideId "763276"]
[BlackFideId "4149351"]
[WhiteElo "1966"]
[BlackElo "2232"]
[Result "0-1"]
[Round "08"]
[TimeControl "180+1"]
[Date "2022.02.08"]
[WhiteClock "0:00:44"]
[BlackClock "0:00:09"]

1. Nf3 {[%clk 0:03:00]}  Nf6 {[%clk 0:02:58]} 2. c4 {[%clk 0:02:59]}  e6 {[%clk 0:02:56]} 3. g3 {[%clk 0:02:55]}  d5 {[%clk 0:02:51]} 4. b3 {[%clk 0:02:51]}  Be7 {[%clk 0:02:49]} 5. Bg2 {[%clk 0:02:50]}  O-O {[%clk 0:02:49]} 6. O-O {[%clk 0:02:51]}  b6 {[%clk 0:02:48]} 7. Bb2 {[%clk 0:02:50]}  Bb7 {[%clk 0:02:48]} 8. d4 {[%clk 0:02:50]}  Nbd7 {[%clk 0:02:30]} 9. Nbd2 {[%clk 0:02:49]}  Ne4 {[%clk 0:02:07]} 10. e3 {[%clk 0:02:48]}  f5 {[%clk 0:02:06]} 11. Ne5 {[%clk 0:02:46]}  Nxe5 {[%clk 0:01:55]} 12. dxe5 {[%clk 0:02:41]}  Bb4 {[%clk 0:01:47]} 13. Nxe4 {[%clk 0:02:26]}  dxe4 {[%clk 0:01:42]} 14. a3 {[%clk 0:02:25]}  Be7 {[%clk 0:01:39]} 15. Qe2 {[%clk 0:02:24]}  c5 {[%clk 0:01:32]} 16. Rfd1 {[%clk 0:02:22]}  Qc7 {[%clk 0:01:31]} 17. Rd2 {[%clk 0:02:22]}  Rad8 {[%clk 0:01:28]} 18. Rad1 {[%clk 0:02:22]}  Rxd2 {[%clk 0:01:27]} 19. Rxd2 {[%clk 0:02:22]}  Bc6 {[%clk 0:01:23]} 20. Qd1 {[%clk 0:02:13]}  g6 {[%clk 0:01:15]} 21. Qc2 {[%clk 0:02:11]}  Rf7 {[%clk 0:01:13]} 22. Qc3 {[%clk 0:02:06]}  Bf8 {[%clk 0:01:13]} 23. Rd6 {[%clk 0:01:59]}  Qc8 {[%clk 0:01:02]} 24. Rd1 {[%clk 0:01:49]}  h6 {[%clk 0:01:01]} 25. b4 {[%clk 0:01:39]}  Kh7 {[%clk 0:00:57]} 26. b5 {[%clk 0:01:38]}  Be8 {[%clk 0:00:53]} 27. a4 {[%clk 0:01:37]}  Rd7 {[%clk 0:00:51]} 28. Rxd7+ {[%clk 0:01:36]}  Qxd7 {[%clk 0:00:50]} 29. Qc2 {[%clk 0:01:36]}  Bg7 {[%clk 0:00:49]} 30. Bf1 {[%clk 0:01:37]}  g5 {[%clk 0:00:47]} 31. Be2 {[%clk 0:01:35]}  Bf7 {[%clk 0:00:27]} 32. Qd1 {[%clk 0:01:24]}  Qc7 {[%clk 0:00:24]} 33. Bh5 {[%clk 0:01:17]}  Bxh5 {[%clk 0:00:19]} 34. Qxh5 {[%clk 0:01:18]}  Qd7 {[%clk 0:00:19]} 35. Qe2 {[%clk 0:01:12]}  Kg6 {[%clk 0:00:18]} 36. Bc3 {[%clk 0:01:11]}  Qc7 {[%clk 0:00:17]} 37. Qb2 {[%clk 0:01:09]}  Qd7 {[%clk 0:00:16]} 38. Qc2 {[%clk 0:01:09]}  h5 {[%clk 0:00:15]} 39. Kg2 {[%clk 0:01:08]}  h4 {[%clk 0:00:14]} 40. Kf1 {[%clk 0:01:08]}  h3 {[%clk 0:00:14]} 41. Ke2 {[%clk 0:01:08]}  Kh5 {[%clk 0:00:14]} 42. a5 {[%clk 0:01:01]}  Bf8 {[%clk 0:00:13]} 43. axb6 {[%clk 0:01:00]}  axb6 {[%clk 0:00:13]} 44. Qa2 {[%clk 0:00:56]}  Qd3+ {[%clk 0:00:12]} 45. Ke1 {[%clk 0:00:54]}  Qxc3+ {[%clk 0:00:12]} 46. Kf1 {[%clk 0:00:55]}  Qd3+ {[%clk 0:00:11]} 47. Ke1 {[%clk 0:00:54]}  Bg7 {[%clk 0:00:11]} 48. Qa7 {[%clk 0:00:53]}  Bxe5 {[%clk 0:00:10]} 49. Qh7+ {[%clk 0:00:45]}  Kg4 {[%clk 0:00:10]} 50. Qg6 {[%clk 0:00:44]}  Bc3# {[%clk 0:00:09]} 0-1


[Site "https://www.chess.com"]

[Event "Early Titled Tuesday Blitz | February 8 2022"]
[White "Moskvin, Anatoly"]
[Black "Odegov, Artem"]
[WhiteFideId "24199990"]
[BlackFideId "34183644"]
[WhiteElo "2079"]
[BlackElo "2277"]
[Result "1-0"]
[Round "08"]
[TimeControl "180+1"]
[Date "2022.02.08"]
[WhiteClock "0:00:05"]
[BlackClock "0:00:07"]

1. e4 {[%clk 0:03:00]}  e6 {[%clk 0:02:56]} 2. Nf3 {[%clk 0:03:01]}  d5 {[%clk 0:02:56]} 3. e5 {[%clk 0:03:01]}  c5 {[%clk 0:02:56]} 4. b4 {[%clk 0:03:02]}  b6 {[%clk 0:02:56]} 5. c3 {[%clk 0:03:02]}  Ba6 {[%clk 0:02:56]} 6. Bxa6 {[%clk 0:03:01]}  Qd7 {[%clk 0:02:55]} 7. Be2 {[%clk 0:02:59]}  Ne7 {[%clk 0:02:55]} 8. bxc5 {[%clk 0:02:59]}  bxc5 {[%clk 0:02:56]} 9. d4 {[%clk 0:02:54]}  c4 {[%clk 0:02:55]} 10. Ba3 {[%clk 0:02:51]}  Nec6 {[%clk 0:02:50]} 11. Bxf8 {[%clk 0:02:52]}  Rxf8 {[%clk 0:02:50]} 12. Qc2 {[%clk 0:02:41]}  g6 {[%clk 0:02:46]} 13. h4 {[%clk 0:02:41]}  h5 {[%clk 0:02:43]} 14. g4 {[%clk 0:02:36]}  hxg4 {[%clk 0:02:37]} 15. Nh2 {[%clk 0:02:37]}  g3 {[%clk 0:02:33]} 16. fxg3 {[%clk 0:02:35]}  Qc7 {[%clk 0:02:32]} 17. Ng4 {[%clk 0:02:35]}  Nd7 {[%clk 0:02:32]} 18. h5 {[%clk 0:02:33]}  gxh5 {[%clk 0:02:30]} 19. Rxh5 {[%clk 0:02:34]}  Qa5 {[%clk 0:02:31]} 20. Nd2 {[%clk 0:02:25]}  Rb8 {[%clk 0:02:28]} 21. a4 {[%clk 0:02:17]}  Rg8 {[%clk 0:01:56]} 22. Kf2 {[%clk 0:02:11]}  Qb6 {[%clk 0:01:42]} 23. Rb1 {[%clk 0:02:10]}  Nxd4 {[%clk 0:01:30]} 24. Rxb6 {[%clk 0:01:37]}  Nxc2 {[%clk 0:01:27]} 25. Rxb8+ {[%clk 0:01:37]}  Nxb8 {[%clk 0:01:22]} 26. Rh1 {[%clk 0:01:32]}  Nd7 {[%clk 0:01:15]} 27. Rc1 {[%clk 0:01:28]}  Na3 {[%clk 0:01:15]} 28. Ra1 {[%clk 0:01:28]}  Nc2 {[%clk 0:01:14]} 29. Ra2 {[%clk 0:01:29]}  d4 {[%clk 0:01:13]} 30. Nxc4 {[%clk 0:01:14]}  d3 {[%clk 0:01:02]} 31. Bxd3 {[%clk 0:01:14]}  Rxg4 {[%clk 0:01:02]} 32. Rxc2 {[%clk 0:01:14]}  Nc5 {[%clk 0:01:02]} 33. Be2 {[%clk 0:01:02]}  Rg5 {[%clk 0:00:58]} 34. a5 {[%clk 0:00:50]}  Rg8 {[%clk 0:00:52]} 35. g4 {[%clk 0:00:34]}  Rh8 {[%clk 0:00:51]} 36. Ke3 {[%clk 0:00:33]}  Rh3+ {[%clk 0:00:50]} 37. Kd4 {[%clk 0:00:33]}  Nb3+ {[%clk 0:00:50]} 38. Ke4 {[%clk 0:00:30]}  Rh2 {[%clk 0:00:37]} 39. Ne3 {[%clk 0:00:21]}  Ke7 {[%clk 0:00:26]} 40. a6 {[%clk 0:00:17]}  Rh3 {[%clk 0:00:19]} 41. Rb2 {[%clk 0:00:11]}  Nc5+ {[%clk 0:00:19]} 42. Kf4 {[%clk 0:00:11]}  f6 {[%clk 0:00:15]} 43. exf6+ {[%clk 0:00:10]}  Kxf6 {[%clk 0:00:15]} 44. g5+ {[%clk 0:00:09]}  Kg7 {[%clk 0:00:13]} 45. Bg4 {[%clk 0:00:07]}  Rh8 {[%clk 0:00:12]} 46. Rb5 {[%clk 0:00:04]}  Rc8 {[%clk 0:00:08]} 47. Ke5 {[%clk 0:00:04]}  Nd3+ {[%clk 0:00:07]} 48. Kxe6 {[%clk 0:00:04]}  Rxc3 {[%clk 0:00:07]} 49. Rb7+ {[%clk 0:00:04]}  Kg6 {[%clk 0:00:07]} 50. Rxa7 {[%clk 0:00:05]}  Nf4+ {[%clk 0:00:05]} 51. Ke5 {[%clk 0:00:05]}  Nd3+ {[%clk 0:00:05]} 52. Kd4 {[%clk 0:00:05]}  Ra3 {[%clk 0:00:04]} 53. Bf5+ {[%clk 0:00:05]}  Kxg5 {[%clk 0:00:04]} 54. Bxd3 {[%clk 0:00:05]}  Kf4 {[%clk 0:00:03]} 55. Bc4 {[%clk 0:00:05]}  Rxa6 {[%clk 0:00:01]} 56. Rxa6 {[%clk 0:00:05]}  Kg5 {[%clk 0:00:01]} 57. Bf7 {[%clk 0:00:04]}  Kf4 {[%clk 0:00:02]} 58. Rf6+ {[%clk 0:00:04]}  Kg5 {[%clk 0:00:03]} 59. Rf5+ {[%clk 0:00:04]}  Kh6 {[%clk 0:00:03]} 60. Bd5 {[%clk 0:00:05]}  Kg7 {[%clk 0:00:03]} 61. Ke5 {[%clk 0:00:06]}  Kh6 {[%clk 0:00:04]} 62. Ke6 {[%clk 0:00:06]}  Kg7 {[%clk 0:00:05]} 63. Ke7 {[%clk 0:00:06]}  Kg6 {[%clk 0:00:05]} 64. Be4 {[%clk 0:00:06]}  Kh6 {[%clk 0:00:05]} 65. Rf1 {[%clk 0:00:05]}  Kh5 {[%clk 0:00:06]} 66. Rg1 {[%clk 0:00:06]}  Kh4 {[%clk 0:00:06]} 67. Rg4+ {[%clk 0:00:06]}  Kh3 {[%clk 0:00:06]} 68. Bf3 {[%clk 0:00:03]}  Kh2 {[%clk 0:00:06]} 69. Nf1+ {[%clk 0:00:04]}  Kh3 {[%clk 0:00:07]} 70. Rg3+ {[%clk 0:00:04]}  Kh4 {[%clk 0:00:07]} 71. Be4 {[%clk 0:00:04]}  Kh5 {[%clk 0:00:06]} 72. Rg1 {[%clk 0:00:05]}  Kh4 {[%clk 0:00:06]} 73. Kf6 {[%clk 0:00:05]}  Kh3 {[%clk 0:00:07]} 74. Bf3 {[%clk 0:00:05]}  Kh4 {[%clk 0:00:07]} 75. Rh1# {[%clk 0:00:05]} 1-0


[Site "https://www.chess.com"]

[Event "Early Titled Tuesday Blitz | February 8 2022"]
[White "Mosutha, Thuso"]
[Black "Loy, Konstantin"]
[WhiteFideId "11302550"]
[BlackFideId "14122499"]
[WhiteElo "2028"]
[BlackElo "2084"]
[Result "1-0"]
[Round "08"]
[TimeControl "180+1"]
[Date "2022.02.08"]
[WhiteClock "0:01:31"]
[BlackClock "0:00:08"]

1. d4 {[%clk 0:03:00]}  Nf6 {[%clk 0:02:40]} 2. c4 {[%clk 0:03:00]}  c5 {[%clk 0:02:39]} 3. d5 {[%clk 0:03:00]}  b5 {[%clk 0:02:39]} 4. cxb5 {[%clk 0:03:01]}  a6 {[%clk 0:02:39]} 5. bxa6 {[%clk 0:03:01]}  Bxa6 {[%clk 0:02:39]} 6. Nc3 {[%clk 0:03:02]}  g6 {[%clk 0:02:38]} 7. e4 {[%clk 0:03:02]}  Bxf1 {[%clk 0:02:37]} 8. Kxf1 {[%clk 0:03:03]}  d6 {[%clk 0:02:37]} 9. Nf3 {[%clk 0:03:03]}  Bg7 {[%clk 0:02:37]} 10. g3 {[%clk 0:03:03]}  Nbd7 {[%clk 0:02:37]} 11. Kg2 {[%clk 0:03:03]}  O-O {[%clk 0:02:38]} 12. Qc2 {[%clk 0:02:58]}  Ra6 {[%clk 0:02:30]} 13. Re1 {[%clk 0:02:57]}  Qa8 {[%clk 0:02:29]} 14. b3 {[%clk 0:02:57]}  e6 {[%clk 0:02:19]} 15. dxe6 {[%clk 0:02:55]}  fxe6 {[%clk 0:02:20]} 16. Bb2 {[%clk 0:02:54]}  d5 {[%clk 0:02:13]} 17. exd5 {[%clk 0:02:49]}  exd5 {[%clk 0:02:08]} 18. Nb5 {[%clk 0:02:42]}  Qc6 {[%clk 0:01:56]} 19. a4 {[%clk 0:02:38]}  d4 {[%clk 0:01:52]} 20. Qd3 {[%clk 0:02:25]}  Nd5 {[%clk 0:01:46]} 21. Kg1 {[%clk 0:02:20]}  Nb4 {[%clk 0:01:46]} 22. Qc4+ {[%clk 0:02:20]}  Kh8 {[%clk 0:01:42]} 23. Ng5 {[%clk 0:02:18]}  h6 {[%clk 0:01:33]} 24. Ne6 {[%clk 0:02:06]}  Rg8 {[%clk 0:00:51]} 25. Nxg7 {[%clk 0:01:43]}  Rxg7 {[%clk 0:00:49]} 26. Nxd4 {[%clk 0:01:39]}  cxd4 {[%clk 0:00:22]} 27. Qxb4 {[%clk 0:01:39]}  Qd6 {[%clk 0:00:10]} 28. Qxd4 {[%clk 0:01:30]}  Qxd4 {[%clk 0:00:10]} 29. Bxd4 {[%clk 0:01:31]}  Rd6 {[%clk 0:00:07]} 30. Bxg7+ {[%clk 0:01:30]}  Kxg7 {[%clk 0:00:08]} 31. Rad1 {[%clk 0:01:31]} 1-0


[Site "https://www.chess.com"]